bitfinex-derivatives/quotes_BTCF0:USTF0_20251002
["timestamp","ask_amount","ask_price","bid_price","bid_amount"]
[1759393942556,0.12289204,118700.0,118690.0,0.37776129]
[1759393944858,0.19064575,118700.0,118690.0,0.37776129]
[1759393946062,0.10643825,118700.0,118690.0,0.37776129]
[1759393947165,0.12817518,118700.0,118690.0,0.37776129]
[1759393947564,0.12821518,118700.0,118690.0,0.37776129]
[1759393948158,0.06046147,118700.0,118690.0,0.37776129]
[1759393948357,0.01758454,118700.0,118690.0,0.37776129]
[1759393949471,0.08646315,118700.0,118690.0,0.37776129]
[1759393949768,0.01758454,118700.0,118690.0,0.77776129]
[1759393950366,0.01758454,118700.0,118690.0,1.03600258]
[1759393950564,4e-05,118700.0,118690.0,1.03600258]
[1759393951165,0.01698205,118700.0,118690.0,1.03600258]
[1759393951463,4e-05,118700.0,118690.0,1.03600258]
[1759393951666,0.89714903,118720.0,118690.0,1.12021368]
[1759393951857,0.94211986,118720.0,118710.0,0.37710214]
[1759393952268,0.91184517,118720.0,118710.0,0.37710214]
[1759393953375,0.9294603,118720.0,118710.0,0.37710214]
[1759393953866,0.99560668,118720.0,118710.0,0.37710214]
[1759393954169,0.99560668,118720.0,118710.0,0.0343]
[1759393954361,1.00905668,118720.0,118710.0,0.29290574]
[1759393955669,1.00905668,118720.0,118710.0,0.28000574]
[1759393961480,0.98633414,118720.0,118710.0,0.28000574]
[1759393966081,0.98633414,118720.0,118710.0,0.0214]
[1759393966285,0.0976453,118710.0,118700.0,0.36420814]
[1759393966586,0.1208953,118710.0,118700.0,0.62281388]
[1759393967281,0.1208953,118710.0,118700.0,0.53861148]
[1759393967787,0.1107876,118710.0,118700.0,0.53861148]
[1759393967989,0.1107876,118710.0,118700.0,0.55243148]
[1759393968288,0.8671253,118710.0,118700.0,0.63663348]
[1759393968486,0.1074453,118710.0,118700.0,0.63663348]
[1759393968786,0.8671253,118710.0,118700.0,0.63663348]
[1759393969587,0.1074453,118710.0,118700.0,0.63663348]
[1759393969787,0.8671253,118710.0,118700.0,0.63663348]
[1759393973489,0.8670853,118710.0,118700.0,0.63663348]
[1759393974088,0.8670853,118710.0,118700.0,0.69716605]
[1759393974990,0.1074453,118710.0,118700.0,0.69716605]
[1759393975191,0.8670453,118710.0,118700.0,0.69716605]
[1759393976190,0.1074453,118710.0,118700.0,0.69716605]
[1759393976490,0.8670453,118710.0,118700.0,0.69716605]
[1759393977691,0.85693766,118710.0,118700.0,0.69716605]
[1759393978796,0.09733766,118710.0,118700.0,0.69716605]
[1759393978990,0.85689766,118710.0,118700.0,0.69716605]
[1759393980602,0.09733766,118710.0,118700.0,0.69716605]
[1759393980896,0.85689766,118710.0,118700.0,0.69716605]
[1759393983886,0.85685766,118710.0,118700.0,0.69716605]
[1759393984597,0.09733766,118710.0,118700.0,0.69716605]
[1759393984898,0.85685766,118710.0,118700.0,0.69716605]
[1759393985999,0.85685766,118710.0,118700.0,0.63663348]
[1759393986599,0.09733766,118710.0,118700.0,0.63663348]
[1759393986900,0.72633766,118710.0,118700.0,0.63663348]
[1759393987199,0.02325,118710.0,118700.0,0.63663348]
[1759393987399,0.78277,118710.0,118700.0,0.63663348]
[1759393987694,0.8669646,118710.0,118700.0,0.37802774]
[1759393988000,0.8669646,118710.0,118700.0,0.63663348]
[1759393989299,0.8669646,118710.0,118700.0,0.119422]
[1759393989502,0.8669646,118710.0,118700.0,0.63663348]
[1759393991501,0.8669646,118710.0,118700.0,0.65384761]
[1759393992204,0.8669646,118710.0,118700.0,0.13663613]
[1759393992396,0.8669646,118710.0,118700.0,0.65384761]
[1759393993105,0.8669646,118710.0,118700.0,0.13663613]
[1759393993306,0.8669646,118710.0,118700.0,0.65384761]
[1759393994307,0.1074446,118710.0,118700.0,0.65384761]
[1759393994508,0.8668846,118710.0,118700.0,0.65384761]
[1759393995703,0.8668846,118710.0,118700.0,0.13663613]
[1759393995903,0.8668846,118710.0,118700.0,0.71438018]
[1759393998308,0.1074446,118710.0,118700.0,0.71438018]
[1759393998511,0.8668846,118710.0,118700.0,0.71438018]
[1759393999112,0.85677746,118710.0,118700.0,0.71438018]
[1759393999610,0.85677746,118710.0,118700.0,0.65384761]
[1759394001513,0.77254286,118710.0,118700.0,0.7142864]
[1759394002007,0.16795521,118720.0,118710.0,0.0841945]
[1759394002213,0.18972521,118720.0,118710.0,0.37843024]
[1759394002414,0.94912521,118720.0,118710.0,0.37843024]
[1759394003414,0.94912521,118720.0,118710.0,0.63703598]
[1759394004311,0.94912521,118720.0,118710.0,0.37843024]
[1759394005214,0.97118693,118720.0,118710.0,0.37843024]
[1759394006012,0.94912521,118720.0,118710.0,0.37843024]
[1759394007815,0.94912521,118720.0,118710.0,0.1198245]
[1759394008016,0.94912521,118720.0,118710.0,0.37843024]
[1759394008517,0.97118413,118720.0,118710.0,0.37843024]
[1759394009219,0.97118413,118720.0,118710.0,0.63703598]
[1759394011518,0.94912521,118720.0,118710.0,0.63703598]
[1759394012314,0.94912521,118720.0,118710.0,0.37840236]
[1759394013618,0.94912521,118720.0,118710.0,0.1198245]
[1759394013818,0.94912521,118720.0,118710.0,0.37840236]
[1759394016122,0.94912521,118720.0,118710.0,0.29420786]
[1759394016321,0.95888521,118720.0,118710.0,0.29420786]
[1759394016620,0.95888521,118720.0,118710.0,0.28122786]
[1759394017123,0.95888521,118720.0,118710.0,0.36542176]
[1759394017316,0.95888521,118720.0,118710.0,0.1068439]
[1759394017619,0.95888521,118720.0,118710.0,0.36542176]
[1759394017820,0.95888521,118720.0,118710.0,0.37840176]
[1759394018017,0.94912521,118720.0,118710.0,0.37840176]
[1759394022022,0.94912521,118720.0,118710.0,0.1198239]
[1759394022326,0.94912521,118720.0,118710.0,0.37840176]
[1759394023123,0.94912521,118720.0,118710.0,0.43884055]
[1759394027625,0.93901836,118720.0,118710.0,0.43884055]
[1759394030016,0.85482466,118720.0,118710.0,0.43884055]
[1759394030327,0.93901136,118720.0,118710.0,0.43884055]
[1759394032128,0.17961136,118720.0,118710.0,0.43884055]
[1759394032323,0.93897136,118720.0,118710.0,0.43884055]
[1759394033028,0.09542466,118720.0,118710.0,0.43884055]
[1759394033227,0.73729235,118720.0,118710.0,0.63697962]
[1759394033724,0.71506466,118720.0,118710.0,0.69741841]
[1759394038023,0.71506466,118720.0,118710.0,0.18026269]
[1759394038219,0.71506466,118720.0,118710.0,0.69741841]
[1759394038734,0.09542466,118720.0,118710.0,0.69741841]
[1759394039030,0.85478466,118720.0,118710.0,0.69741841]
[1759394040029,0.93897086,118720.0,118710.0,0.69741841]
[1759394040236,0.93897086,118720.0,118710.0,0.43884055]
[1759394040435,0.93897086,118720.0,118710.0,0.37840176]
[1759394041433,0.96119762,118720.0,118710.0,0.37840176]
[1759394041632,0.96119762,118720.0,118710.0,0.1198239]
[1759394041833,0.20183762,118720.0,118710.0,0.37840176]
[1759394042131,0.96119762,118720.0,118710.0,0.37840176]
[1759394042333,0.20183762,118720.0,118710.0,0.37840176]
[1759394042635,0.96119762,118720.0,118710.0,0.37840176]
[1759394043336,0.96119762,118720.0,118710.0,0.63697962]
[1759394043637,0.96119762,118720.0,118710.0,0.37840176]
[1759394056845,0.96119762,118720.0,118710.0,0.1198239]
[1759394057052,0.1181847,118710.0,118700.0,0.35886951]
[1759394057247,0.03399,118710.0,118700.0,0.61744737]
[1759394058150,0.02122,118710.0,118700.0,0.61744737]
[1759394058752,0.1054147,118710.0,118700.0,0.61744737]
[1759394061245,0.1054147,118710.0,118700.0,0.67788616]
[1759394061652,0.09530737,118710.0,118700.0,0.67788616]
[1759394062351,0.09530737,118710.0,118700.0,0.59368986]
[1759394062544,0.3794008,118710.0,118700.0,0.02153]
[1759394063052,0.12082294,118710.0,118700.0,0.28010786]
[1759394064256,0.09865737,118710.0,118700.0,0.28010786]
[1759394064552,0.09865737,118710.0,118700.0,0.02153]
[1759394065356,0.12080442,118710.0,118700.0,0.28010786]
[1759394065956,0.12080442,118710.0,118700.0,0.02153]
[1759394067444,0.77938228,118710.0,118700.0,0.02153]
[1759394067649,0.1054314,118700.0,118690.0,0.37773606]
[1759394067850,0.8647914,118700.0,118690.0,0.37773606]
[1759394071160,0.8647914,118700.0,118690.0,0.29352786]
[1759394072361,1.12348969,118700.0,118690.0,0.29364829]
[1759394073862,0.8647914,118700.0,118690.0,0.29364829]
[1759394074660,0.8647914,118700.0,118690.0,0.03495]
[1759394074861,0.8647914,118700.0,118690.0,0.29364829]
[1759394076261,0.8647914,118700.0,118690.0,0.37785589]
[1759394077463,0.8647914,118700.0,118690.0,0.29364829]
[1759394084870,0.8435614,118700.0,118690.0,0.25869829]
[1759394085871,0.8435614,118700.0,118690.0,0.34290599]
[1759394088372,0.0842075,118690.0,118680.0,0.25869829]
[1759394088577,0.0842075,118690.0,118680.0,0.51739658]
[1759394089072,0.75944,118690.0,118680.0,0.60160628]
[1759394089478,0.75944,118690.0,118680.0,0.60260628]
[1759394090476,0.0842041,118700.0,118690.0,0.0842075]
[1759394090680,0.8436441,118700.0,118690.0,0.60160408]
[1759394090982,0.0842041,118700.0,118690.0,0.60160408]
[1759394091273,0.8436441,118700.0,118690.0,0.60160408]
[1759394091475,0.86579786,118700.0,118690.0,0.60160408]
[1759394092069,0.86579786,118700.0,118690.0,0.34290579]
[1759394092782,0.10635786,118700.0,118690.0,0.34290579]
[1759394093079,0.88871786,118700.0,118690.0,0.37762579]
[1759394095876,0.8665641,118700.0,118690.0,0.37762579]
[1759394096077,0.88872765,118700.0,118690.0,0.37762579]
[1759394096884,0.12928765,118700.0,118690.0,0.37762579]
[1759394097184,0.88872765,118700.0,118690.0,0.37762579]
[1759394099786,0.88872765,118700.0,118690.0,0.29341829]
[1759394100287,0.1071275,118690.0,118680.0,0.29341829]
[1759394100483,0.39745934,118690.0,118680.0,0.25869829]
[1759394100689,0.13876105,118690.0,118680.0,0.25869829]
[1759394100987,0.37529579,118690.0,118680.0,0.25869829]
[1759394101882,0.37529579,118690.0,118680.0,0.25969829]
[1759394102082,0.37529579,118690.0,118680.0,0.26069829]
[1759394102387,0.37529579,118690.0,118680.0,0.002]
[1759394102580,0.37529579,118690.0,118680.0,0.26069829]
[1759394102781,0.37529579,118690.0,118680.0,0.32113708]
[1759394103282,0.37529579,118690.0,118680.0,0.26069829]
[1759394103476,0.1071345,118680.0,118670.0,0.03472]
[1759394103688,1.12467302,118680.0,118670.0,0.34121817]
[1759394104580,1.12467302,118680.0,118670.0,0.32016817]
[1759394104780,1.38337131,118680.0,118670.0,0.002]
[1759394104988,1.52467302,118680.0,118670.0,0.002]
[1759394105482,0.0842215,118670.0,118660.0,0.33623741]
[1759394105687,0.1166115,118670.0,118660.0,0.33623741]
[1759394106485,0.37530979,118670.0,118660.0,0.33623741]
[1759394106685,0.37530979,118670.0,118660.0,0.25869829]
[1759394108692,0.1071488,118660.0,118650.0,0.09526148]
[1759394108879,0.8667088,118660.0,118650.0,0.35395977]
[1759394111495,0.87942487,118660.0,118650.0,0.35395977]
[1759394114183,0.87942487,118660.0,118650.0,0.29348989]
[1759394114387,0.87942487,118660.0,118650.0,0.35395977]
[1759394114587,0.87942487,118660.0,118650.0,0.29348989]
[1759394115796,1.13812316,118660.0,118650.0,0.0221216]
[1759394115996,1.13812316,118660.0,118650.0,0.25876989]
[1759394117288,1.13812316,118660.0,118650.0,7.16e-05]
[1759394117494,1.13812316,118660.0,118650.0,0.25876989]
[1759394117793,2.63812316,118660.0,118650.0,0.25876989]
[1759394119303,2.63812316,118660.0,118650.0,7.16e-05]
[1759394119494,2.63812316,118660.0,118650.0,0.25876989]
[1759394119694,1.13812316,118660.0,118650.0,7.16e-05]
[1759394119890,1.13812316,118660.0,118650.0,0.25876989]
[1759394121001,1.13812316,118660.0,118650.0,0.28108989]
[1759394121903,1.13812316,118660.0,118650.0,0.25876989]
[1759394124906,1.13812316,118660.0,118650.0,0.28183989]
[1759394126209,1.13812316,118660.0,118650.0,0.36607529]
[1759394126404,0.79535607,118660.0,118650.0,0.37952529]
[1759394127805,0.87958427,118660.0,118650.0,0.37952529]
[1759394128412,0.11986427,118660.0,118650.0,0.37952529]
[1759394128609,0.87994427,118660.0,118650.0,0.37952529]
[1759394129112,0.11986427,118660.0,118650.0,0.37952529]
[1759394129413,0.87994427,118660.0,118650.0,0.37952529]
[1759394130312,0.87994427,118660.0,118650.0,0.29528989]
[1759394130711,0.87994427,118660.0,118650.0,0.37952629]
[1759394131212,1.13864256,118660.0,118650.0,0.37952629]
[1759394131913,0.37856256,118660.0,118650.0,0.37952629]
[1759394132114,1.13864256,118660.0,118650.0,0.37952629]
[1759394132513,0.37856256,118660.0,118650.0,0.120828]
[1759394132714,1.13860256,118660.0,118650.0,0.120828]
[1759394132914,1.13860256,118660.0,118650.0,0.37952629]
[1759394134115,0.87990427,118660.0,118650.0,0.37952629]
[1759394134316,0.87990427,118660.0,118650.0,0.37968637]
[1759394136419,0.87990427,118660.0,118650.0,0.29544997]
[1759394137320,0.11986427,118660.0,118650.0,0.29544997]
[1759394137616,0.87986427,118660.0,118650.0,0.29544997]
[1759394140123,0.11986427,118660.0,118650.0,0.29544997]
[1759394140419,0.87982427,118660.0,118650.0,0.29544997]
[1759394140722,0.87982427,118660.0,118650.0,0.37968627]
[1759394141415,0.87982427,118660.0,118650.0,0.1208279]
[1759394141621,0.87982427,118660.0,118650.0,0.37968627]
[1759394142627,0.11986427,118660.0,118650.0,0.37968627]
[1759394142933,0.87982427,118660.0,118650.0,0.37968627]
[1759394143133,0.87982427,118660.0,118650.0,0.1208279]
[1759394143318,0.87982427,118660.0,118650.0,1.09901452]
[1759394143319,0.01271607,118660.0,118650.0,1.09901452]
[1759394143515,0.10800301,118680.0,118670.0,0.1207419]
[1759394143721,0.41744301,118680.0,118670.0,0.37960027]
[1759394144227,0.10800301,118680.0,118670.0,0.37960027]
[1759394144630,0.67820301,118680.0,118670.0,0.37960027]
[1759394145130,0.86820301,118680.0,118670.0,0.44007188]
[1759394146417,0.86824301,118680.0,118670.0,0.44007188]
[1759394146629,0.95245771,118680.0,118670.0,0.44007188]
[1759394146828,0.96524496,118680.0,118670.0,0.37960027]
[1759394147030,0.20500496,118680.0,118670.0,0.37960027]
[1759394147229,0.96524496,118680.0,118670.0,0.37960027]
[1759394147624,0.96520496,118680.0,118670.0,0.37960027]
[1759394147823,0.20500496,118680.0,118670.0,0.37960027]
[1759394148030,0.106344,118700.0,118690.0,0.1188576]
[1759394148325,0.650064,118700.0,118690.0,0.37771597]
[1759394148722,0.106344,118700.0,118690.0,0.1188576]
[1759394148923,0.866624,118700.0,118690.0,0.37771597]
[1759394149826,0.87968471,118700.0,118690.0,0.37771597]
[1759394153639,0.1063475,118690.0,118680.0,0.0388869]
[1759394153830,0.1063475,118690.0,118680.0,0.1231015]
[1759394154137,0.1063475,118690.0,118680.0,0.1362115]
[1759394156138,0.1063475,118690.0,118680.0,0.39506987]
[1759394157138,0.8664675,118690.0,118680.0,0.39506987]
[1759394157543,0.8664675,118690.0,118680.0,0.1362115]
[1759394157837,0.8664675,118690.0,118680.0,0.39506987]
[1759394160241,0.8664675,118690.0,118680.0,0.31085527]
[1759394161645,0.8664675,118690.0,118680.0,0.0519969]
[1759394161833,0.8664675,118690.0,118680.0,0.31085527]
[1759394162233,0.8664675,118690.0,118680.0,0.0519969]
[1759394171239,0.8664675,118690.0,118680.0,0.0388869]
[1759394173352,0.8759375,118690.0,118680.0,0.0388869]
[1759394175450,0.0842216,118670.0,118660.0,0.07392161]
[1759394175649,0.34141955,118670.0,118660.0,0.06048317]
[1759394175950,0.72308118,118670.0,118660.0,0.45501488]
[1759394176151,0.78976741,118670.0,118660.0,0.45501488]
[1759394176652,0.78976741,118670.0,118660.0,0.45601488]
[1759394176951,0.90964741,118670.0,118660.0,0.45601488]
[1759394177841,0.90964741,118670.0,118660.0,0.45501488]
[1759394178655,0.90964741,118670.0,118660.0,0.45601488]
[1759394179156,0.90964741,118670.0,118660.0,0.37078618]
[1759394180454,0.90964741,118670.0,118660.0,0.11192781]
[1759394180958,0.90960741,118670.0,118660.0,0.11192781]
[1759394181857,0.90960741,118670.0,118660.0,0.19615651]
[1759394182051,0.90960741,118670.0,118660.0,0.39453171]
[1759394182756,0.14924741,118670.0,118660.0,0.39453171]
[1759394182955,0.90960741,118670.0,118660.0,0.39453171]
[1759394185056,0.14924741,118670.0,118660.0,0.39453171]
[1759394185257,0.90956741,118670.0,118660.0,0.39453171]
[1759394194267,1.1683847,118670.0,118660.0,0.39449063]
[1759394194572,1.1683847,118670.0,118660.0,0.40353056]
[1759394195369,1.1683847,118670.0,118660.0,0.36560739]
[1759394197965,1.1683847,118670.0,118660.0,0.42609056]
[1759394200272,0.4080647,118670.0,118660.0,0.42609056]
[1759394200465,1.1681447,118670.0,118660.0,0.43915056]
[1759394200662,1.1681447,118670.0,118660.0,0.37866739]
[1759394201170,1.1681447,118670.0,118660.0,0.1198501]
[1759394201370,1.1681447,118670.0,118660.0,0.37866739]
[1759394210380,1.1681447,118670.0,118660.0,0.43915056]
[1759394212382,1.1681447,118670.0,118660.0,0.37866739]
[1759394212785,1.1681447,118670.0,118660.0,0.43915056]
[1759394218089,0.90932741,118670.0,118660.0,0.43915056]
[1759394218288,1.1681447,118670.0,118660.0,0.43915056]
[1759394220589,1.1681447,118670.0,118660.0,0.35492046]
[1759394220778,1.82696199,118670.0,118660.0,0.06048317]
[1759394220978,1.5681447,118670.0,118660.0,0.06048317]
[1759394221384,0.1069095,118660.0,118650.0,0.45655421]
[1759394221575,0.36572679,118660.0,118650.0,0.45655421]
[1759394221982,0.8667895,118660.0,118650.0,0.45655421]
[1759394222281,1.12560679,118660.0,118650.0,0.45655421]
[1759394222486,0.8667895,118660.0,118650.0,0.45755421]
[1759394222680,1.12560679,118660.0,118650.0,0.45755421]
[1759394223081,1.12568679,118660.0,118650.0,0.45755421]
[1759394224286,1.12568679,118660.0,118650.0,0.45655421]
[1759394224890,1.12568679,118660.0,118650.0,0.37231811]
[1759394225685,1.12568679,118660.0,118650.0,0.29872494]
[1759394225686,1.13515679,118660.0,118650.0,0.29872494]
[1759394226185,1.39397408,118660.0,118650.0,0.35920811]
[1759394226387,1.12504519,118660.0,118650.0,0.35920811]
[1759394227288,1.12504519,118660.0,118650.0,0.18462712]
[1759394227492,1.12504519,118660.0,118650.0,0.35920811]
[1759394227683,0.8662279,118660.0,118650.0,0.37222811]
[1759394227885,1.12504519,118660.0,118650.0,0.37222811]
[1759394230490,1.12500519,118660.0,118650.0,0.45646441]
[1759394231798,0.36508519,118660.0,118650.0,0.45646441]
[1759394232093,1.12500519,118660.0,118650.0,0.45646441]
[1759394232595,0.36508519,118660.0,118650.0,0.39598124]
[1759394232810,1.12500519,118660.0,118650.0,0.39598124]
[1759394237294,0.8661879,118660.0,118650.0,0.39598124]
[1759394237494,1.12500519,118660.0,118650.0,0.39598124]
[1759394238902,0.0967979,118660.0,118650.0,0.39598124]
[1759394239097,0.93485519,118660.0,118650.0,0.39598124]
[1759394239995,0.93485519,118660.0,118650.0,0.13716395]
[1759394240202,0.93485519,118660.0,118650.0,0.39598124]
[1759394241200,1.11545519,118660.0,118650.0,0.39598124]
[1759394242902,1.11545519,118660.0,118650.0,0.13716395]
[1759394243108,1.11545519,118660.0,118650.0,0.39598124]
[1759394243402,1.11545519,118660.0,118650.0,0.37222811]
[1759394245293,1.37427248,118660.0,118650.0,0.34197206]
[1759394245604,1.37427248,118660.0,118650.0,0.08315477]
[1759394245799,1.37427248,118660.0,118650.0,0.34197206]
[1759394245998,1.11545519,118660.0,118650.0,0.08315477]
[1759394246196,1.37427248,118660.0,118650.0,0.06055477]
[1759394246399,1.11545519,118660.0,118650.0,0.31937206]
[1759394246803,1.11545519,118660.0,118650.0,0.34112206]
[1759394246996,0.8566379,118660.0,118650.0,0.28063889]
[1759394247197,1.37427248,118660.0,118650.0,0.34112206]
[1759394247402,1.37427248,118660.0,118650.0,7.16e-05]
[1759394247403,0.8566379,118660.0,118650.0,7.16e-05]
[1759394247709,1.37427248,118660.0,118650.0,0.25888889]
[1759394247908,1.11545519,118660.0,118650.0,0.25888889]
[1759394248601,1.37427248,118660.0,118650.0,0.25888889]
[1759394249006,1.11545519,118660.0,118650.0,0.25888889]
[1759394249803,1.11545519,118660.0,118650.0,0.28063889]
[1759394251709,1.11541519,118660.0,118650.0,0.28063889]
[1759394252108,0.35561519,118660.0,118650.0,0.28063889]
[1759394252308,1.11541519,118660.0,118650.0,0.28063889]
[1759394252608,1.11541519,118660.0,118650.0,0.29374889]
[1759394253309,0.35561519,118660.0,118650.0,0.29374889]
[1759394253511,1.11541519,118660.0,118650.0,0.29374889]
[1759394253911,0.35561519,118660.0,118650.0,0.29374889]
[1759394254111,1.11541519,118660.0,118650.0,0.29374889]
[1759394255110,1.11541519,118660.0,118650.0,0.29774889]
[1759394255809,1.13789926,118660.0,118650.0,0.29374889]
[1759394256016,1.13789926,118660.0,118650.0,0.29474889]
[1759394256210,0.87908197,118660.0,118650.0,0.0359316]
[1759394258618,0.11928197,118660.0,118650.0,0.29480063]
[1759394258810,0.87912197,118660.0,118650.0,0.29480063]
[1759394261620,0.8566379,118660.0,118650.0,0.29480063]
[1759394262922,0.87912083,118660.0,118650.0,0.29480063]
[1759394265110,0.87912083,118660.0,118650.0,0.0228216]
[1759394265317,1.13798986,118660.0,118650.0,0.0228216]
[1759394265921,0.87912083,118660.0,118650.0,0.29480063]
[1759394266126,0.11928083,118660.0,118650.0,0.29480063]
[1759394266421,0.87912083,118660.0,118650.0,0.29480063]
[1759394268123,0.8566379,118660.0,118650.0,0.29480063]
[1759394270726,0.8565979,118660.0,118650.0,0.29480063]
[1759394277530,0.87909282,118660.0,118650.0,0.29480063]
[1759394284542,0.87909282,118660.0,118650.0,0.0359316]
[1759394285946,0.87909282,118660.0,118650.0,0.0228216]
[1759394287545,0.8565979,118660.0,118650.0,0.0228216]
[1759394288046,1.11546693,118660.0,118650.0,0.0228216]
[1759394292346,0.8565979,118660.0,118650.0,0.0233816]
[1759394292543,0.0967979,118660.0,118650.0,0.0362916]
[1759394292943,0.7899979,118660.0,118650.0,0.0362916]
[1759394293442,0.7899979,118660.0,118650.0,0.29516063]
[1759394293738,0.0967979,118660.0,118650.0,0.29516063]
[1759394293943,0.8565979,118660.0,118650.0,0.29516063]
[1759394297250,0.0967979,118660.0,118650.0,0.29516063]
[1759394297448,0.8565979,118660.0,118650.0,0.29516063]
[1759394300451,0.0967979,118660.0,118650.0,0.37939753]
[1759394300648,0.78248,118660.0,118650.0,0.37939753]
[1759394300853,0.8667098,118660.0,118650.0,0.37939753]
[1759394306849,0.02268,118660.0,118650.0,0.63826656]
[1759394307051,0.78248,118660.0,118650.0,0.63826656]
[1759394307652,0.02268,118660.0,118650.0,1.03826656]
[1759394308049,0.01256885,118660.0,118650.0,1.03826656]
[1759394308651,0.55171373,118670.0,118650.0,1.03826656]
[1759394308857,0.56087373,118670.0,118660.0,0.37860893]
[1759394309858,0.56287373,118670.0,118660.0,0.37860893]
[1759394310057,0.56087373,118670.0,118660.0,0.37960893]
[1759394310457,0.56087373,118670.0,118660.0,0.37860893]
[1759394310758,0.56087373,118670.0,118660.0,0.37960893]
[1759394312157,0.56087373,118670.0,118660.0,0.37860893]
[1759394312358,0.56087373,118670.0,118660.0,0.37960893]
[1759394312561,0.56087373,118670.0,118660.0,0.38060893]
[1759394316260,0.8196824,118670.0,118660.0,0.63935724]
[1759394318567,0.56087373,118670.0,118660.0,0.63935724]
[1759394318863,0.8196824,118670.0,118660.0,0.63935724]
[1759394319759,0.8196824,118670.0,118660.0,0.1217399]
[1759394320059,0.8196824,118670.0,118660.0,0.63935724]
[1759394320765,0.56087373,118670.0,118660.0,0.63935724]
[1759394322961,0.56087373,118670.0,118660.0,0.1217399]
[1759394323162,0.56087373,118670.0,118660.0,0.63935724]
[1759394325773,0.56087373,118670.0,118660.0,0.1217399]
[1759394325970,0.8196824,118670.0,118660.0,0.63935724]
[1759394326169,0.8196824,118670.0,118660.0,0.38054857]
[1759394328664,0.56087373,118670.0,118660.0,0.38054857]
[1759394328866,0.8196824,118670.0,118660.0,0.38054857]
[1759394330575,0.8196824,118670.0,118660.0,0.29631867]
[1759394331775,0.8196824,118670.0,118660.0,0.38054857]
[1759394333372,0.8196824,118670.0,118660.0,0.63935724]
[1759394333875,0.8196824,118670.0,118660.0,0.38054857]
[1759394335577,0.8196824,118670.0,118660.0,0.29631867]
[1759394339379,0.84197843,118670.0,118660.0,0.38054857]
[1759394340581,0.44117843,118670.0,118660.0,0.38054857]
[1759394340880,1.20089843,118670.0,118660.0,0.63935724]
[1759394343681,1.20089843,118670.0,118660.0,0.03751]
[1759394343876,1.1786024,118670.0,118660.0,0.29631867]
[1759394346886,1.1786024,118670.0,118660.0,0.38054857]
[1759394350898,1.1786024,118670.0,118660.0,0.29631867]
[1759394351292,1.1786024,118670.0,118660.0,0.38054857]
[1759394351999,0.91979373,118670.0,118660.0,0.38054857]
[1759394352297,1.1785624,118670.0,118660.0,0.38054857]
[1759394352794,1.1785624,118670.0,118660.0,0.63935724]
[1759394353896,1.1785624,118670.0,118660.0,0.1217399]
[1759394354194,0.91975373,118670.0,118660.0,0.1217399]
[1759394354386,0.91975373,118670.0,118660.0,0.63935724]
[1759394354683,0.91975373,118670.0,118660.0,0.1217399]
[1759394354885,0.91975373,118670.0,118660.0,0.63935724]
[1759394355898,0.07584623,118670.0,118660.0,0.63935724]
[1759394356100,0.83552623,118670.0,118660.0,0.1217399]
[1759394356493,0.83552623,118670.0,118660.0,0.63935724]
[1759394356693,0.83552623,118670.0,118660.0,0.1217399]
[1759394356900,0.83552623,118670.0,118660.0,0.63935724]
[1759394357292,0.07584623,118670.0,118660.0,0.63935724]
[1759394357491,0.68308623,118670.0,118660.0,0.63935724]
[1759394358600,0.76731013,118670.0,118660.0,0.63935724]
[1759394362696,0.91971013,118670.0,118660.0,0.63935724]
[1759394363096,0.83548623,118670.0,118660.0,0.63935724]
[1759394363302,0.82537536,118670.0,118660.0,0.63935724]
[1759394370808,0.82537536,118670.0,118660.0,0.1217399]
[1759394371009,0.82537536,118670.0,118660.0,0.63935724]
[1759394372513,0.00916,118680.0,118670.0,0.0970842]
[1759394372809,0.00916,118680.0,118670.0,0.39500985]
[1759394373910,0.00916,118680.0,118670.0,0.39600985]
[1759394374613,0.00916,118680.0,118670.0,0.39500985]
[1759394374814,0.00916,118680.0,118670.0,0.39600985]
[1759394375009,0.0778279,118680.0,118670.0,0.39600985]
[1759394375202,0.0933771,118680.0,118670.0,0.39600985]
[1759394375406,0.0933771,118680.0,118670.0,0.13720118]
[1759394375609,0.0933771,118680.0,118670.0,0.39600985]
[1759394376314,0.0933771,118680.0,118670.0,0.39594663]
[1759394378617,0.00916,118680.0,118670.0,0.39594663]
[1759394380212,0.0774978,118680.0,118670.0,0.39594663]
[1759394381008,0.1617149,118680.0,118670.0,0.39594663]
[1759394382415,0.0774978,118680.0,118670.0,0.39594663]
[1759394384921,0.0683378,118680.0,118670.0,0.39594663]
[1759394385221,0.6203351,118690.0,118680.0,0.119227]
[1759394385518,0.6203351,118690.0,118680.0,0.37797245]
[1759394386821,0.8548951,118690.0,118680.0,0.37797245]
[1759394387118,0.8568951,118690.0,118680.0,0.37797245]
[1759394389421,0.92325353,118690.0,118680.0,0.37797245]
[1759394397224,0.92325353,118690.0,118680.0,0.03501]
[1759394397430,1.18199898,118690.0,118680.0,0.03501]
[1759394397834,0.0933771,118680.0,118670.0,0.13729088]
[1759394398032,0.35212255,118680.0,118670.0,0.13729088]
[1759394398631,0.0842242,118670.0,118660.0,0.1375218]
[1759394398831,1.10153935,118670.0,118660.0,0.1375218]
[1759394399130,0.8427939,118670.0,118660.0,0.1375218]
[1759394399829,0.8427939,118670.0,118660.0,0.39626725]
[1759394400129,0.8427939,118670.0,118660.0,0.39726725]
[1759394400331,0.8427939,118670.0,118660.0,0.31403905]
[1759394400527,0.8427939,118670.0,118660.0,0.1395249]
[1759394400728,0.8427939,118670.0,118660.0,0.0552936]
[1759394401021,0.8427939,118670.0,118660.0,0.31403905]
[1759394401224,0.8427939,118670.0,118660.0,0.0552936]
[1759394401534,0.8427939,118670.0,118660.0,0.39827035]
[1759394403735,0.8427939,118670.0,118660.0,0.1395249]
[1759394403931,0.8427939,118670.0,118660.0,0.39827035]
[1759394405034,0.8427939,118670.0,118660.0,0.1395249]
[1759394405227,0.8427939,118670.0,118660.0,0.39827035]
[1759394411738,0.8427939,118670.0,118660.0,0.31403905]
[1759394412732,1.10153935,118670.0,118660.0,0.002]
[1759394412932,1.12144613,118670.0,118660.0,0.002]
[1759394413134,1.5214478,118670.0,118660.0,0.002]
[1759394413437,1.50153935,118670.0,118660.0,0.002]
[1759394421439,0.4832739,118670.0,118660.0,0.002]
[1759394421639,1.50165935,118670.0,118660.0,0.002]
[1759394428152,1.2429139,118670.0,118660.0,0.002]
[1759394428352,1.50165935,118670.0,118660.0,0.002]
[1759394430557,1.12418341,118670.0,118660.0,0.002]
[1759394431558,0.0842313,118660.0,118650.0,0.0971688]
[1759394431854,0.8530313,118660.0,118650.0,0.37906425]
[1759394432657,0.8530313,118660.0,118650.0,0.38006425]
[1759394433057,0.8530313,118660.0,118650.0,0.38106425]
[1759394434058,0.8530313,118660.0,118650.0,0.1223188]
[1759394434358,0.8530313,118660.0,118650.0,0.1243188]
[1759394435058,0.8530313,118660.0,118650.0,0.1203188]
[1759394435354,0.8530313,118660.0,118650.0,0.1213188]
[1759394436262,1.11191091,118660.0,118650.0,0.38019841]
[1759394437450,1.11191091,118660.0,118650.0,0.29596121]
[1759394440760,0.8530313,118660.0,118650.0,0.29596121]